[Event "Canary Islands-chW 2019"]
[Site "La Palma"]
[Date "2019.05.02"]
[Round "1.1"]
[White "Otero Campos, Sofia"]
[Black "Sosa Suarez, Carla Cristina"]
[Result "0-1"]
[ECO "D02"]
[WhiteElo "1371"]
[BlackElo "2093"]
[Annotator "NA"]
[PlyCount "92"]
[EventDate "2019.05.02"]
[EventType "swiss"]
[EventCountry "ESP"]
[SourceTitle "playchess.com"]
[Source "ChessBase"]
[SourceQuality "1"]
[TimeControl "5400+30"]

1. d4 {[%emt 0:00:00]} d5 {[%emt 0:00:00]} 2. Bf4 {[%emt 0:00:00]} Nf6 {[%emt 0:00:02]} 3. e3 {[%emt 0:00:06]} c5 {[%emt 0:01:11]} 4. c3 {[%emt 0:00:27]} Nc6 {[%emt 0:00:55]} 5. Nf3 {[%emt 0:00:47]} Qb6 {[%emt 0:03:34]} 6. Qb3 {[%emt 0:06:02]} Qd8 {[%emt 0:09:52]} 7. Nbd2 {[%emt 0:05:17]} e6 {[%emt 0:03:12]} 8. Be2 {[%emt 0:05:57]} Be7 {[%emt 0:00:40]} 9. O-O {[%emt 0:00:24]} Nh5 {[%emt 0:04:01]} 10. Bg3 {[%emt 0:09:18]} Nxg3 {[%emt 0:00:39]} 11. hxg3 {[%emt 0:00:14]} O-O {[%emt 0:00:58]} 12. Rac1 {[%emt 0:02:06]} b6 {[%emt 0:15:20]} 13. Rfe1 {[%emt 0:09:35]} Bb7 {[%emt 0:03:43]} 14. Nf1 {[%emt 0:01:28]} g6 {[%emt 0:06:03]} 15. N1h2 {[%emt 0:05:47]} h5 {[%emt 0:00:57]} 16. Nf1 {[%emt 0:09:15]} Rc8 {[%emt 0:04:43]} 17. N1d2 {[%emt 0:03:16]} Kg7 {[%emt 0:00:37]} 18. Qc2 {[%emt 0:07:12]} Bf6 {[%emt 0:02:37]} 19. Qb3 {[%emt 0:01:36]} Rc7 {[%emt 0:01:09]} 20. a4 {[%emt 0:06:12]} Qd7 {[%emt 0:04:05]} 21. dxc5 {[%emt 0:04:25]} bxc5 {[%emt 0:00:40]} 22. e4 {[%emt 0:02:35]} Rd8 {[%emt 0:04:07]} 23. exd5 {[%emt 0:00:48]} exd5 {[%emt 0:01:10]} 24. c4 {[%emt 0:05:04]} Nb4 {[%emt 0:06:58]} 25. cxd5 {[%emt 0:03:35]} Bxd5 {[%emt 0:00:38]} 26. Qd1 {[%emt 0:00:49]} Bxb2 {[%emt 0:02:08]} 27. Rb1 {[%emt 0:00:23]} Bf6 {[%emt 0:01:57]} 28. Bb5 $2 {[%emt 0:01:18]} (28. Nc4) 28... Qf5 {[%emt 0:00:34]} 29. Qe2 {[%emt 0:02:58]} Na2 {[%emt 0:06:44]} 30. Bd3 {[%emt 0:02:04]} (30. Qf1 {was forced.}) 30... Qg4 {[%emt 0:03:07]} 31. Nh2 $2 {[%emt 0:01:53]} (31. Qe3) 31... Qxe2 {[%emt 0:00:12]} 32. Bxe2 {[%emt 0:00:13]} Nc3 {[%emt 0:00:26]} 33. Rbc1 {[%emt 0:00:31]} Bc6 {[%emt 0:00:53]} 34. a5 $2 {[%emt 0:00:36]} (34. Nhf1) 34... Rxd2 {[%emt 0:00:07]} 35. Bc4 {[%emt 0:00:35]} Bd4 {[%emt 0:00:52]} 36. Rf1 {[%emt 0:00:46]} Ne2+ $19 {[%emt 0:00:47]} 37. Bxe2 {[%emt 0:00:13]} Rxe2 {[%emt 0:00:03]} 38. Nf3 {[%emt 0:00:18]} Bxf3 {[%emt 0:00:24]} 39. gxf3 {[%emt 0:00:08]} c4 {[%emt 0:00:20]} 40. Rcd1 {[%emt 0:00:26]} Rd7 {[%emt 0:00:16]} 41. Rc1 {[%emt 0:00:13]} c3 {[%emt 0:00:17]} 42. a6 {[%emt 0:00:14]} c2 {[%emt 0:00:11]} 43. Kg2 {[%emt 0:00:23]} Bb2 {[%emt 0:00:20]} 44. Rce1 {[%emt 0:00:10]} Rxe1 {[%emt 0:00:12]} 45. Rxe1 {[%emt 0:00:05]} c1=Q {[%emt 0:00:08]} 46. Rxc1 {[%emt 0:00:04]} Bxc1 {[%emt 0:00:07]} 0-1

[Event "Canary Islands-chW 2019"]
[Site "La Palma"]
[Date "2019.05.02"]
[Round "1.2"]
[White "Rodriguez Redondo, Adhara"]
[Black "Bethencourt Hernandez, Valeria"]
[Result "1-0"]
[ECO "C55"]
[WhiteElo "1883"]
[BlackElo "1237"]
[Annotator "NA"]
[PlyCount "97"]
[EventDate "2019.05.02"]
[EventType "swiss"]
[EventCountry "ESP"]
[SourceTitle "playchess.com"]
[Source "ChessBase"]
[SourceQuality "1"]
[TimeControl "5400+30"]

1. e4 {[%emt 0:00:00]} e5 {[%emt 0:00:00]} 2. Nf3 {[%emt 0:00:00]} Nc6 {[%emt 0:00:10]} 3. Bc4 {[%emt 0:00:00]} Nf6 {[%emt 0:00:59]} 4. d3 {[%emt 0:00:00]} Be7 {[%emt 0:01:41]} 5. c3 {[%emt 0:00:06]} a6 {[%emt 0:03:12]} 6. O-O {[%emt 0:00:48]} O-O {[%emt 0:02:20]} 7. Nbd2 {[%emt 0:00:28]} d5 {[%emt 0:05:19]} 8. exd5 {[%emt 0:01:52]} Nxd5 {[%emt 0:00:10]} 9. Re1 {[%emt 0:00:57]} Bg4 {[%emt 0:08:25]} 10. h3 {[%emt 0:01:58]} Bxf3 {[%emt 0:02:08]} 11. Nxf3 {[%emt 0:00:26]} Bf6 {[%emt 0:01:14]} 12. a4 {[%emt 0:01:30]} Re8 {[%emt 0:04:01]} 13. a5 {[%emt 0:01:09]} b6 {[%emt 0:13:58]} 14. Qb3 {[%emt 0:02:44]} Nxa5 {[%emt 0:03:43]} 15. Rxa5 {[%emt 0:00:15]} bxa5 {[%emt 0:00:53]} 16. Bxd5 {[%emt 0:00:11]} Rb8 {[%emt 0:00:29]} 17. Bxf7+ {[%emt 0:00:54]} Kh8 {[%emt 0:01:20]} 18. Qa4 {[%emt 0:03:17]} Rf8 {[%emt 0:13:03]} 19. Bc4 {[%emt 0:00:12]} Qd6 {[%emt 0:00:48]} 20. Qxa5 {[%emt 0:00:42]} Rfe8 {[%emt 0:04:12]} 21. Qxa6 {[%emt 0:00:53]} h6 {[%emt 0:03:31]} 22. Qxd6 {[%emt 0:01:08]} cxd6 {[%emt 0:00:08]} 23. Bd5 {[%emt 0:02:00]} Re7 {[%emt 0:04:11]} 24. d4 {[%emt 0:02:31]} g5 {[%emt 0:06:36]} 25. g3 {[%emt 0:02:28]} Kg7 {[%emt 0:01:56]} 26. Kg2 {[%emt 0:01:25]} Kg6 {[%emt 0:05:47]} 27. Re2 {[%emt 0:01:42]} Rb5 {[%emt 0:01:59]} 28. Be4+ {[%emt 0:00:59]} Kf7 {[%emt 0:01:59]} 29. d5 {[%emt 0:01:14]} Rc5 {[%emt 0:02:14]} 30. Be3 {[%emt 0:01:42]} Rb5 {[%emt 0:02:44]} 31. b4 {[%emt 0:01:05]} Kg7 {[%emt 0:00:54]} 32. Bd2 {[%emt 0:00:46]} Rc7 {[%emt 0:00:33]} 33. Ne1 {[%emt 0:01:17]} Bd8 {[%emt 0:03:07]} 34. Nc2 {[%emt 0:00:21]} Ra7 {[%emt 0:01:02]} 35. Ne3 {[%emt 0:00:46]} Rbb7 {[%emt 0:01:06]} 36. Nf5+ {[%emt 0:00:10]} Kf6 {[%emt 0:00:21]} 37. Nxd6 {[%emt 0:00:25]} Rd7 {[%emt 0:00:22]} 38. Nc4 {[%emt 0:00:50]} Rac7 {[%emt 0:01:10]} 39. Ne3 {[%emt 0:01:02]} h5 {[%emt 0:00:41]} 40. c4 {[%emt 0:00:21]} Ra7 {[%emt 0:00:42]} 41. c5 {[%emt 0:00:43]} Rg7 {[%emt 0:00:33]} 42. Nc4 {[%emt 0:00:17]} Bc7 {[%emt 0:00:37]} 43. d6 {[%emt 0:00:08]} Bd8 {[%emt 0:00:02]} 44. Bc3 {[%emt 0:00:16]} Ke6 {[%emt 0:00:06]} 45. Nxe5 {[%emt 0:00:59]} Rg8 {[%emt 0:01:03]} 46. Nc6 {[%emt 0:00:15]} Rd7 {[%emt 0:00:07]} 47. Bh7+ {[%emt 0:00:24]} Kd5 {[%emt 0:00:20]} 48. Bxg8+ {[%emt 0:00:21]} Kxc6 {[%emt 0:00:03]} 49. Bc4 {[%emt 0:00:14] Kd5 [%emt 00:00:18]} 1-0

[Event "Canary Islands-chW 2019"]
[Site "La Palma"]
[Date "2019.05.03"]
[Round "2.1"]
[White "Sosa Suarez, Carla Cristina"]
[Black "Barrera Martin, Nayra"]
[Result "1-0"]
[ECO "C55"]
[WhiteElo "2093"]
[BlackElo "1584"]
[Annotator "NA"]
[PlyCount "137"]
[EventDate "2019.05.02"]
[EventType "swiss"]
[EventCountry "ESP"]
[SourceTitle "playchess.com"]
[Source "ChessBase"]
[SourceQuality "1"]
[TimeControl "5400+30"]

1. e4 {[%emt 0:00:00]} e5 {[%emt 0:00:22]} 2. Nf3 {[%emt 0:00:00]} Nc6 {[%emt 0:00:25]} 3. Bc4 {[%emt 0:00:00]} Nf6 {[%emt 0:00:31]} 4. d3 {[%emt 0:00:00]} Be7 {[%emt 0:01:56]} 5. O-O {[%emt 0:00:19]} d6 {[%emt 0:03:17]} 6. c3 {[%emt 0:02:26]} a6 {[%emt 0:04:13]} 7. Bb3 {[%emt 0:01:49]} O-O {[%emt 0:02:59]} 8. Re1 {[%emt 0:00:26]} Be6 {[%emt 0:02:33]} 9. d4 {[%emt 0:02:56]} Bxb3 {[%emt 0:04:59]} 10. Qxb3 {[%emt 0:00:31]} Qc8 {[%emt 0:02:08]} 11. h3 {[%emt 0:02:26]} Na5 {[%emt 0:04:05]} 12. Qa4 {[%emt 0:03:55]} Nc6 {[%emt 0:00:38]} 13. Bg5 {[%emt 0:06:42]} Re8 {[%emt 0:09:16]} 14. Qd1 {[%emt 0:05:06]} Nd7 {[%emt 0:05:40]} 15. Bh4 {[%emt 0:05:10]} Bxh4 {[%emt 0:02:17]} 16. Nxh4 {[%emt 0:00:03]} Nf6 {[%emt 0:01:29]} 17. d5 {[%emt 0:01:31]} Ne7 {[%emt 0:01:25]} 18. Nd2 {[%emt 0:02:29]} Qd7 {[%emt 0:01:38]} 19. Nc4 {[%emt 0:06:52]} a5 {[%emt 0:10:28]} 20. Qf3 {[%emt 0:05:19]} Qb5 {[%emt 0:03:14]} 21. Qe2 {[%emt 0:04:24]} a4 {[%emt 0:02:57]} 22. Rad1 {[%emt 0:01:23]} Qd7 {[%emt 0:07:23]} 23. Qf3 {[%emt 0:01:40]} b5 {[%emt 0:02:31]} 24. Ne3 {[%emt 0:00:41]} Rab8 {[%emt 0:02:19]} 25. a3 {[%emt 0:01:28]} Rb6 {[%emt 0:02:21]} 26. Nhf5 {[%emt 0:01:47]} Ng6 {[%emt 0:03:10]} 27. Kh2 {[%emt 0:03:10]} Qd8 {[%emt 0:04:42]} 28. Nc2 {[%emt 0:03:24]} c6 {[%emt 0:03:51]} 29. dxc6 {[%emt 0:00:45]} Rxc6 {[%emt 0:01:40]} 30. Nb4 {[%emt 0:00:15]} Rb6 {[%emt 0:00:13]} 31. Rd2 {[%emt 0:02:03]} Re6 {[%emt 0:01:42]} 32. Red1 {[%emt 0:01:30]} Ne7 {[%emt 0:03:33]} 33. Nxe7+ {[%emt 0:03:52]} Rxe7 {[%emt 0:01:29]} 34. Qe2 {[%emt 0:03:07]} Rd7 {[%emt 0:00:35]} 35. Nc2 {[%emt 0:04:19]} Qa8 {[%emt 0:00:34]} 36. f3 {[%emt 0:01:24]} Nh5 {[%emt 0:00:47]} 37. Qf2 {[%emt 0:00:56]} Qd8 {[%emt 0:01:01]} 38. Ne3 {[%emt 0:00:55]} Nf6 {[%emt 0:00:17]} 39. Nf5 {[%emt 0:00:53]} g6 {[%emt 0:00:36]} 40. Ne3 {[%emt 0:01:18]} Rc6 {[%emt 0:01:16]} 41. Qe2 {[%emt 0:01:08]} Qb8 {[%emt 0:00:42]} 42. Kg1 {[%emt 0:01:30]} Rc8 {[%emt 0:00:39]} 43. Kh2 {[%emt 0:01:39]} Kg7 {[%emt 0:00:22]} 44. Nd5 {[%emt 0:00:15]} Rc5 {[%emt 0:01:54]} 45. Nxf6 {[%emt 0:01:02]} Kxf6 {[%emt 0:00:09]} 46. Qe3 {[%emt 0:00:47]} Ke7 {[%emt 0:01:28]} 47. Qg5+ {[%emt 0:00:21]} f6 {[%emt 0:00:47]} 48. Qh6 {[%emt 0:00:28]} Qg8 {[%emt 0:00:12]} 49. Qe3 {[%emt 0:00:12]} Qe6 {[%emt 0:00:20]} 50. Rd5 {[%emt 0:01:26]} Rxd5 {[%emt 0:00:34]} 51. Rxd5 {[%emt 0:00:04]} Rb7 {[%emt 0:00:15]} 52. Kg1 {[%emt 0:00:59]} f5 {[%emt 0:00:58]} 53. Qg5+ {[%emt 0:00:19]} Kd7 {[%emt 0:00:52]} 54. Qe3 {[%emt 0:01:36]} Kc6 {[%emt 0:00:35]} 55. Qd3 {[%emt 0:00:36]} fxe4 {[%emt 0:00:30]} 56. fxe4 {[%emt 0:00:45]} Rb6 {[%emt 0:00:18]} 57. Qe2 {[%emt 0:02:36]} Qd7 {[%emt 0:00:23]} 58. Rd1 {[%emt 0:00:34]} Rb8 {[%emt 0:00:33]} 59. Qd3 {[%emt 0:00:33]} Qe6 {[%emt 0:00:19]} 60. Rc1 {[%emt 0:00:28]} Qc4 {[%emt 0:00:23]} 61. Qf3 {[%emt 0:00:27]} Rb7 {[%emt 0:00:20]} 62. Rf1 {[%emt 0:00:20]} Re7 {[%emt 0:00:40]} 63. Qg4 {[%emt 0:00:23]} Kc7 {[%emt 0:00:33]} 64. Qf3 {[%emt 0:00:39]} Qe6 {[%emt 0:00:48]} 65. Rd1 {[%emt 0:00:25]} Rf7 {[%emt 0:00:32]} 66. Qd3 {[%emt 0:00:16]} Qc4 {[%emt 0:00:24]} 67. Qxd6+ {[%emt 0:00:27]} Kb7 {[%emt 0:00:23]} 68. Qd5+ {[%emt 0:00:25]} Qc6 {[%emt 0:00:46]} 69. Qxf7+ {[%emt 0:00:05]} 1-0

[Event "Canary Islands-chW 2019"]
[Site "La Palma"]
[Date "2019.05.03"]
[Round "2.2"]
[White "Sanabria Taskila, Jenny Maria"]
[Black "Rodriguez Redondo, Adhara"]
[Result "0-1"]
[ECO "C64"]
[WhiteElo "1815"]
[BlackElo "1883"]
[Annotator "NA"]
[PlyCount "80"]
[EventDate "2019.05.02"]
[EventType "swiss"]
[EventCountry "ESP"]
[SourceTitle "playchess.com"]
[Source "ChessBase"]
[SourceQuality "1"]
[TimeControl "5400+30"]

1. e4 {[%emt 0:00:00]} e5 {[%emt 0:00:00]} 2. Nf3 {[%emt 0:00:00]} Nc6 {[%emt 0:00:00]} 3. Bb5 {[%emt 0:00:00]} Bc5 {[%emt 0:00:00]} 4. c3 {[%emt 0:00:01]} Nf6 {[%emt 0:00:05]} 5. d4 {[%emt 0:00:47]} exd4 {[%emt 0:00:38]} 6. O-O {[%emt 0:00:16]} d5 {[%emt 0:10:20]} 7. cxd4 {[%emt 0:34:21]} Be7 {[%emt 0:07:44]} 8. Ne5 {[%emt 0:12:32]} Bd7 {[%emt 0:03:39]} 9. exd5 {[%emt 0:10:42]} Nxe5 {[%emt 0:09:10]} 10. dxe5 {[%emt 0:00:06]} Bxb5 {[%emt 0:00:29]} 11. exf6 {[%emt 0:00:44]} gxf6 {[%emt 0:02:07]} 12. Re1 {[%emt 0:01:47]} Qd7 {[%emt 0:04:33]} 13. Nc3 {[%emt 0:00:46]} Ba6 {[%emt 0:04:09]} 14. b4 {[%emt 0:04:38]} O-O-O {[%emt 0:01:59]} 15. b5 {[%emt 0:05:32]} Bxb5 {[%emt 0:08:08]} 16. Rxe7 {[%emt 0:02:33]} Qxe7 {[%emt 0:00:56]} 17. Nxb5 {[%emt 0:01:23]} Rxd5 {[%emt 0:03:51]} 18. Nxa7+ {[%emt 0:06:40]} Kb8 {[%emt 0:02:07]} 19. Bd2 {[%emt 0:06:18]} Qd7 {[%emt 0:03:06]} 20. Rb1 {[%emt 0:05:28]} Kxa7 {[%emt 0:02:22]} 21. Qb3 {[%emt 0:00:39]} b6 {[%emt 0:02:07]} 22. Be3 {[%emt 0:01:10]} Qd6 {[%emt 0:01:18]} 23. Bf4 {[%emt 0:00:52]} Qxf4 {[%emt 0:23:25]} 24. Qxd5 {[%emt 0:00:07]} Re8 {[%emt 0:01:42]} 25. Qd3 {[%emt 0:04:29]} Qe4 {[%emt 0:01:09]} 26. Qxe4 {[%emt 0:00:36]} Rxe4 {[%emt 0:00:06]} 27. Kf1 {[%emt 0:00:14]} c5 {[%emt 0:02:26]} 28. Rd1 {[%emt 0:00:31]} Re7 {[%emt 0:03:00]} 29. Rc1 {[%emt 0:00:43]} Ka6 {[%emt 0:00:30]} 30. Rc4 {[%emt 0:00:32]} Kb5 {[%emt 0:00:29]} 31. Rc2 {[%emt 0:00:28]} Re6 {[%emt 0:02:04]} 32. Rc3 {[%emt 0:00:19]} c4 {[%emt 0:00:34]} 33. a3 {[%emt 0:00:40]} Kc5 {[%emt 0:00:30]} 34. Rh3 {[%emt 0:00:29]} Kd4 {[%emt 0:01:11]} 35. Rxh7 {[%emt 0:00:30]} c3 {[%emt 0:00:35]} 36. Rxf7 {[%emt 0:00:12]} c2 {[%emt 0:00:45]} 37. Rc7 {[%emt 0:00:31]} Kd3 {[%emt 0:00:15]} 38. h4 {[%emt 0:00:50]} Kd2 {[%emt 0:00:05]} 39. Rd7+ {[%emt 0:00:08]} Kc3 {[%emt 0:00:16]} 40. Rc7+ {[%emt 0:00:50]} Kb2 {[%emt 0:00:06]} 0-1

[Event "Canary Islands-chW 2019"]
[Site "La Palma"]
[Date "2019.05.03"]
[Round "3.1"]
[White "Rodriguez Redondo, Adhara"]
[Black "Mukhi Talreja, Ishita Tina"]
[Result "1-0"]
[ECO "B74"]
[WhiteElo "1883"]
[BlackElo "1493"]
[Annotator "NA"]
[PlyCount "57"]
[EventDate "2019.05.02"]
[EventType "swiss"]
[EventCountry "ESP"]
[SourceTitle "playchess.com"]
[Source "ChessBase"]
[SourceQuality "1"]
[TimeControl "5400+30"]

1. e4 {[%emt 0:00:00]} c5 {[%emt 0:00:00]} 2. Nf3 {[%emt 0:00:00]} d6 {[%emt 0:00:13]} 3. d4 {[%emt 0:00:00]} cxd4 {[%emt 0:00:17]} 4. Nxd4 {[%emt 0:00:00]} Nf6 {[%emt 0:00:28]} 5. Nc3 {[%emt 0:00:00]} g6 {[%emt 0:00:26]} 6. Be2 {[%emt 0:00:06]} Bg7 {[%emt 0:00:17]} 7. O-O {[%emt 0:00:27]} O-O {[%emt 0:00:21]} 8. f4 {[%emt 0:00:54]} Nc6 {[%emt 0:04:53]} 9. Be3 {[%emt 0:02:37]} Bd7 {[%emt 0:03:00]} 10. Nb3 {[%emt 0:00:40]} Rc8 {[%emt 0:02:41]} 11. Bf3 {[%emt 0:02:23]} a6 {[%emt 0:04:36]} 12. a4 {[%emt 0:00:32]} Be6 {[%emt 0:10:52]} 13. Kh1 {[%emt 0:04:47]} Bc4 {[%emt 0:06:12]} 14. Rf2 {[%emt 0:02:54]} Nd7 {[%emt 0:06:44]} 15. Rd2 {[%emt 0:04:14]} Bxc3 {[%emt 0:14:38]} 16. bxc3 {[%emt 0:00:09]} Qc7 {[%emt 0:01:58]} 17. e5 {[%emt 0:01:59]} d5 {[%emt 0:09:30]} 18. Bxd5 {[%emt 0:01:27]} Bxd5 {[%emt 0:00:11]} 19. Rxd5 {[%emt 0:00:05]} Ncb8 {[%emt 0:08:56]} 20. Rd3 {[%emt 0:02:04]} Nb6 {[%emt 0:03:02]} 21. Bxb6 {[%emt 0:02:59]} Qxb6 {[%emt 0:00:31]} 22. Qg4 {[%emt 0:01:28]} Rc4 {[%emt 0:07:37]} 23. Qh4 {[%emt 0:08:10]} Nc6 {[%emt 0:04:00]} 24. Qh6 {[%emt 0:02:25]} Rd8 {[%emt 0:05:38]} 25. Rh3 {[%emt 0:00:39]} e6 {[%emt 0:00:33]} 26. Qxh7+ {[%emt 0:00:06]} Kf8 {[%emt 0:00:23]} 27. Qh8+ {[%emt 0:00:04]} Ke7 {[%emt 0:01:13]} 28. Qf6+ {[%emt 0:00:06]} Kd7 {[%emt 0:01:12]} 29. Qxf7+ {[%emt 0:00:37]} 1-0

[Event "Canary Islands-chW 2019"]
[Site "La Palma"]
[Date "2019.05.03"]
[Round "3.2"]
[White "Hernandez Capote, Carmen"]
[Black "Sosa Suarez, Carla Cristina"]
[Result "0-1"]
[ECO "E05"]
[WhiteElo "1691"]
[BlackElo "2093"]
[Annotator "NA"]
[PlyCount "86"]
[EventDate "2019.05.02"]
[EventType "swiss"]
[EventCountry "ESP"]
[SourceTitle "playchess.com"]
[Source "ChessBase"]
[SourceQuality "1"]
[TimeControl "5400+30"]

1. Nf3 {[%emt 0:00:00]} e6 {[%emt 0:00:00]} 2. c4 {[%emt 0:00:00]} d5 {[%emt 0:00:00]} 3. g3 {[%emt 0:00:00]} Nf6 {[%emt 0:00:00]} 4. Bg2 {[%emt 0:00:05]} Be7 {[%emt 0:00:00]} 5. d4 {[%emt 0:00:12]} O-O {[%emt 0:00:08]} 6. O-O {[%emt 0:00:16]} dxc4 {[%emt 0:00:04]} 7. Qa4 {[%emt 0:00:51]} a6 {[%emt 0:00:53]} 8. Qxc4 {[%emt 0:00:08]} b5 {[%emt 0:00:17]} 9. Qc2 {[%emt 0:02:00]} Bb7 {[%emt 0:00:06]} 10. Nbd2 {[%emt 0:00:33]} Nbd7 {[%emt 0:01:20]} 11. Ne5 {[%emt 0:09:25] E05: Open Catalan: 5 Nf3 Be7} (11. Nb3 Rc8 12. Be3 Be4 13. Qd1 c5 14. dxc5 Nxc5 15. Nxc5 Bxc5 16. Bxc5 Rxc5 17. Qxd8 Rxd8 18. Rfc1 Rdc8 19. Rxc5 Rxc5 20. Rd1 Kf8 21. Ne1 Bxg2 22. Kxg2 Ke7 {½-½ (22) Mamedov,R (2628)-Gagunashvili,M (2570) Tbilisi 2012}) 11... Bxg2 {[%emt 0:04:20]} 12. Kxg2 {[%emt 0:00:21]} Nxe5 {[%emt 0:03:49]} 13. dxe5 {[%emt 0:00:03]} Nd5 {[%emt 0:04:29]} 14. Nf3 {[%emt 0:01:44]} c5 {[%emt 0:04:34]} 15. a3 {[%emt 0:02:08]} Qc7 {[%emt 0:01:56]} 16. Bg5 {[%emt 0:04:20]} Rfd8 $146 {[%emt 0:02:55]} ({Predecessor:} 16... h6 17. Bxe7 Nxe7 18. Rac1 Rac8 {1-0 (32) Hoehn,M (2052)-Spitzl,P (2065) Hessen 2017}) 17. Rfd1 {[%emt 0:07:31]} Rac8 {[%emt 0:00:52]} 18. Rac1 {[%emt 0:00:51]} c4 {[%emt 0:02:51]} 19. Bxe7 {[%emt 0:08:21]} Qxe7 {[%emt 0:01:13]} 20. e4 {[%emt 0:02:29]} Nb6 {[%emt 0:02:05]} 21. Qe2 {[%emt 0:17:40]} Na4 {[%emt 0:03:03]} 22. Rc2 {[%emt 0:13:35]} Nc5 {[%emt 0:05:17]} 23. Rxd8+ {[%emt 0:09:32]} Rxd8 {[%emt 0:00:20]} ({Don't play} 23... Qxd8 24. Rd2 $17) 24. Qe3 {[%emt 0:03:25]} Rd3 {[%emt 0:01:33]} 25. Qf4 {[%emt 0:00:23]} h6 {[%emt 0:01:06]} 26. h4 {[%emt 0:02:04]} Qd8 {[%emt 0:10:01]} 27. g4 {[%emt 0:00:48]} Rd1 {[%emt 0:10:01]} 28. g5 {[%emt 0:00:38]} Nd3 {[%emt 0:01:29]} 29. Qg4 {[%emt 0:01:10]} hxg5 {[%emt 0:06:13]} 30. Nxg5 {[%emt 0:01:24]} Ne1+ {[%emt 0:08:07]} 31. Kh2 {[%emt 0:01:00]} Nxc2 {[%emt 0:01:09]} 32. Qh5 {[%emt 0:00:42]} Qd7 {[%emt 0:00:11]} 33. Qh7+ {[%emt 0:00:45]} Kf8 {[%emt 0:00:04]} 34. Qh8+ {[%emt 0:00:14]} Ke7 {[%emt 0:00:06]} 35. Qxg7 {[%emt 0:00:35]} Kd8 {[%emt 0:00:55]} 36. Qf8+ {[%emt 0:02:45]} Kc7 {[%emt 0:00:24]} 37. Nxf7 {[%emt 0:00:52]} Nd4 {[%emt 0:08:05]} 38. Qa8 {[%emt 0:01:52]} Nc6 {[%emt 0:01:25]} 39. Nd6 {[%emt 0:01:13]} Rxd6 {[%emt 0:04:19]} 40. exd6+ {[%emt 0:00:02]} Qxd6+ {[%emt 0:00:05]} 41. Kg2 {[%emt 0:00:06]} Qf4 {[%emt 0:00:51]} 42. Qxa6 {[%emt 0:00:48]} Qxe4+ $19 {[%emt 0:00:05]} 43. Kg3 {[%emt 0:00:27]} Qe5+ {[%emt 0:00:19]} 0-1

[Event "Canary Islands-chW 2019"]
[Site "La Palma"]
[Date "2019.05.04"]
[Round "4.1"]
[White "Sosa Suarez, Carla Cristina"]
[Black "Rodriguez Redondo, Adhara"]
[Result "1-0"]
[ECO "C64"]
[WhiteElo "2093"]
[BlackElo "1883"]
[Annotator "NA RC"]
[PlyCount "119"]
[EventDate "2019.05.02"]
[EventType "swiss"]
[EventCountry "ESP"]
[SourceTitle "playchess.com"]
[Source "ChessBase"]
[SourceQuality "1"]
[TimeControl "5400+30"]

1. e4 {[%emt 0:00:00]} e5 {[%emt 0:00:00]} 2. Nf3 {[%emt 0:00:00]} Nc6 {[%emt 0:00:00]} 3. Bb5 {[%emt 0:00:00]} Bc5 {[%emt 0:00:00]} 4. c3 {[%emt 0:00:00]} Nf6 {[%emt 0:00:12]} 5. d4 {[%emt 0:00:00]} exd4 {[%emt 0:00:09]} 6. O-O {[%emt 0:00:30] C64: Ruy Lopez: Classical Defence (3...Bc5) except 4 0-0 Nf6} (6. e5 Ne4 7. cxd4 Bb4+ 8. Nbd2 O-O 9. O-O Nxd2 10. Bxd2 Bxd2 11. Qxd2 Ne7 12. Ng5 d6 13. f4 Bf5 14. Rae1 dxe5 15. fxe5 {1-0 (50) Anand,V (2779)-Vallejo Pons,F (2711) Doha 2016}) 6... dxc3 {[%emt 0:00:36]} 7. e5 {[%emt 0:00:28]} Ng4 {[%emt 0:00:52]} 8. Nxc3 {[%emt 0:00:09]} O-O {[%emt 0:01:59]} 9. Bg5 {[%emt 0:00:06]} Be7 {[%emt 0:03:28]} 10. Bxe7 {[%emt 0:00:05]} Nxe7 {[%emt 0:02:36]} 11. h3 $146 {[%emt 0:00:53]} ({Predecessor:} 11. Qc2 Ng6 12. Rfe1 Nh4 13. Nxh4 Qxh4 {1-0 (21) Schmitz,N-Larsen,M Tromsoe 1999}) 11... Nh6 {[%emt 0:01:22]} 12. Re1 {[%emt 0:00:05]} a6 {[%emt 0:01:58]} 13. Ba4 {[%emt 0:01:46]} b5 {[%emt 0:03:08]} 14. Bc2 {[%emt 0:01:54]} Bb7 {[%emt 0:02:47]} 15. Ne4 {[%emt 0:06:37]} Ng6 {[%emt 0:10:39]} 16. Qd3 {[%emt 0:02:16]} Qe7 {[%emt 0:06:56]} 17. h4 {[%emt 0:05:01]} Bxe4 {[%emt 0:11:10]} ({Black should play} 17... Rfe8 $11) 18. Qxe4 {[%emt 0:02:11]} Rfe8 {[%emt 0:03:48]} 19. h5 {[%emt 0:01:44]} Nf8 {[%emt 0:00:18]} 20. Rad1 {[%emt 0:05:28]} Rad8 {[%emt 0:02:38]} 21. Rc1 {[%emt 0:11:51]} d5 {[%emt 0:07:28]} 22. exd6 $1 {[%emt 0:03:04]} Qxe4 {[%emt 0:00:15]} 23. Bxe4 {[%emt 0:01:10]} cxd6 {[%emt 0:00:23]} 24. Bb7 {[%emt 0:05:27]} Rxe1+ {[%emt 0:01:25]} 25. Rxe1 {[%emt 0:00:23]} a5 {[%emt 0:00:48]} 26. Nd4 {[%emt 0:01:02]} Ne6 {[%emt 0:07:14]} 27. Nxe6 {[%emt 0:03:23]} fxe6 {[%emt 0:00:17]} 28. Rxe6 {[%emt 0:00:07]} Kf8 {[%emt 0:03:38]} 29. Be4 {[%emt 0:05:32]} Kf7 {[%emt 0:02:28]} 30. Bd5 {[%emt 0:00:59]} Kf8 {[%emt 0:00:19]} 31. Kf1 {[%emt 0:02:54]} Ng4 {[%emt 0:01:19]} 32. Bc6 {[%emt 0:06:15]} b4 {[%emt 0:01:04]} 33. f4 {[%emt 0:03:10]} Nf6 {[%emt 0:02:12]} 34. Bf3 {[%emt 0:00:56]} Kf7 {[%emt 0:00:40]} 35. Re2 {[%emt 0:00:34]} Rc8 {[%emt 0:01:48]} 36. Kf2 {[%emt 0:02:23]} Rc5 {[%emt 0:02:09]} 37. g4 {[%emt 0:00:51]} h6 {[%emt 0:01:53]} 38. Ke3 $11 {[%emt 0:03:24]} Nd7 {[%emt 0:03:54]} 39. Kd4 {[%emt 0:02:17]} Nb6 {[%emt 0:01:23]} 40. Be4 {[%emt 0:01:29]} Kf6 {[%emt 0:01:12]} 41. b3 {[%emt 0:04:18]} a4 {[%emt 0:04:00]} 42. Bf5 {[%emt 0:04:14]} Rd5+ {[%emt 0:01:16]} 43. Ke4 {[%emt 0:00:45]} axb3 {[%emt 0:02:55]} 44. axb3 {[%emt 0:00:04]} Rc5 {[%emt 0:01:05]} 45. Kd4 {[%emt 0:00:54]} Rd5+ {[%emt 0:00:10]} 46. Ke4 {[%emt 0:01:27]} Rc5 {[%emt 0:00:12]} 47. Rd2 {[%emt 0:00:45]} Rc6 {[%emt 0:05:01]} 48. Rd3 {[%emt 0:01:15]} Ke7 {[%emt 0:02:21]} 49. Rd4 {[%emt 0:03:12]} d5+ {[%emt 0:00:28]} 50. Ke5 {[%emt 0:00:35]} Rc1 {[%emt 0:00:32]} 51. Rxb4 {[%emt 0:00:50]} Re1+ {[%emt 0:00:31]} 52. Kd4 {[%emt 0:00:13]} Rd1+ {[%emt 0:00:25]} 53. Kc5 {[%emt 0:00:47]} Nd7+ {[%emt 0:00:33]} 54. Bxd7 {[%emt 0:00:36]} Kxd7 {[%emt 0:00:12]} 55. Rd4 {[%emt 0:00:30]} Rc1+ {[%emt 0:00:42]} 56. Kxd5 {[%emt 0:00:34]} Rg1 {[%emt 0:00:37]} 57. Ke5+ {[%emt 0:00:26]} Ke7 {[%emt 0:00:18]} 58. Kf5 {[%emt 0:00:36]} Rb1 {[%emt 0:00:34]} 59. b4 {[%emt 0:00:04]} Rb3 {[%emt 0:00:33]} 60. Ke4 {[%emt 0:04:39]} 1-0